bitfinex/quotes_ETHUSD_20220113
["timestamp","ask_amount","ask_price","bid_price","bid_amount"]
[1642095661404,6.0978,3280.1,3279.6,0.1218]
[1642095661605,6.0978,3280.1,3279.8,0.01235812]
[1642095661806,6.0978,3280.1,3279.9,0.7623]
[1642095662005,6.0978,3280.1,3279.6,1.52459]
[1642095662203,6.0978,3280.1,3279.1,0.1218]
[1642095662402,0.05683269,3280.0,3279.1,0.1218]
[1642095662604,0.0718,3279.9,3278.9,10.4218]
[1642095662903,0.00511581,3279.9,3278.9,10.4218]
[1642095663103,0.05182362,3279.8,3278.9,10.4218]
[1642095663304,0.76248,3279.6,3278.9,0.1218]
[1642095663504,5.29811356,3279.5,3278.9,0.1218]
[1642095663702,0.1218,3279.4,3278.9,0.1218]
[1642095663907,0.07831651,3279.2,3278.9,0.1218]
[1642095664103,0.17434463,3279.1,3278.9,0.1218]
[1642095664555,0.1218,3279.1,3278.9,0.1218]
[1642095665452,17.72,3279.0,3278.9,0.1218]
[1642095665853,0.1218,3279.1,3278.9,0.1218]
[1642095666153,0.76277,3278.7,3278.3,0.00113541]
[1642095666452,0.07208406,3278.6,3278.4,0.0022737]
[1642095666653,1.52554,3278.8,3278.1,1.60077911]
[1642095666854,17.72113684,3279.0,3278.2,0.44394982]
[1642095666855,0.00113684,3279.0,3278.2,0.44394982]
[1642095667052,0.00170527,3278.7,3278.2,0.44508667]
[1642095667255,0.1218,3279.1,3278.2,0.44508667]
[1642095667256,0.06440421,3278.8,3278.2,0.44508667]
[1642095667452,0.06992874,3278.5,3278.2,0.44508667]
[1642095667653,0.00170527,3278.7,3278.3,0.88466]
[1642095667854,0.0022737,3278.8,3278.4,1.5594082]
[1642095668052,9.99240332,3279.8,3278.7,0.45898946]
[1642095668307,9.99240332,3279.8,3279.2,0.61077113]
[1642095668308,5.291,3279.8,3279.2,0.61077113]
[1642095668508,0.00682108,3279.6,3278.7,0.1218]
[1642095668707,0.00682108,3279.6,3279.2,0.76235]
[1642095668908,0.00625266,3279.5,3279.3,1.52473]
[1642095669110,0.00625266,3279.5,3279.4,4.35312559]
[1642095669409,0.76248,3279.6,3278.9,0.76257]
[1642095669608,0.08105606,3279.5,3278.9,0.76257]
[1642095669813,0.00568424,3279.4,3278.9,0.76257]
[1642095670011,0.00568424,3279.4,3278.8,2.28761]
[1642095670213,0.00511581,3279.3,3278.9,0.54576626]
[1642095670409,0.00511581,3279.3,3279.0,1.196938]
[1642095670612,0.00454739,3279.2,3279.0,1.196938]
[1642095671009,0.00397897,3279.1,3279.0,1.196938]
[1642095671210,0.00397897,3279.1,3279.0,1.959438]
[1642095671709,0.00397897,3279.1,3279.0,6.709438]
[1642095672158,2.22894167,3279.1,3279.0,6.709438]
[1642095672757,2.62105681,3279.2,3279.0,6.709438]
[1642095673057,2.62105681,3279.2,3279.0,7.0906191]
[1642095673258,2.24139621,3279.2,3279.0,7.0906191]
[1642095673658,2.24139621,3279.2,3279.0,6.709438]
[1642095674261,1.4925785,3279.2,3279.0,6.709438]
[1642095674658,1.4925785,3279.2,3279.0,7.0906003]
[1642095675059,1.4925785,3279.1,3279.0,6.709438]
[1642095675263,2.96878319,3279.6,3279.1,10.3]
[1642095675460,2.96878319,3279.6,3279.2,1.64634]
[1642095675461,2.9716253,3279.6,3279.2,1.64634]
[1642095675818,2.62105681,3279.7,3279.3,10.6811276]
[1642095676018,2.98504521,3279.8,3279.5,0.53409076]
[1642095676219,2.98504521,3279.8,3279.6,0.8840057]
[1642095676419,2.98504521,3279.8,3279.6,0.7622057]
[1642095676719,2.98504521,3279.8,3279.6,1.5243957]
[1642095677019,2.98504521,3279.8,3279.6,1.9054986]
[1642095677220,0.0022737,3280.0,3279.6,1.9054986]
[1642095677421,0.0022737,3280.0,3279.7,1.31524049]
[1642095677619,0.00170527,3279.9,3279.7,1.31524049]
[1642095677919,0.00113685,3279.8,3279.7,2.83966049]
[1642095678720,0.00113685,3279.8,3279.7,10.18966049]
[1642095679043,0.00113685,3279.8,3279.7,8.66524049]
[1642095681661,2.24910832,3279.8,3279.7,1.31524049]
[1642095682262,6.0978,3280.1,3279.8,10.3]
[1642095682462,6.0978,3280.1,3279.8,11.86144899]
[1642095682765,6.0978,3280.1,3280.0,10.86218834]
[1642095682961,6.0978,3280.1,3280.0,10.3]
[1642095683162,6.09950527,3280.1,3280.0,10.3]
[1642095683605,6.09950527,3280.1,3279.9,1.64606]
[1642095684005,0.00113685,3280.0,3279.9,1.64606]
[1642095684205,0.00113685,3280.0,3279.9,0.88398]
[1642095684606,0.00113685,3280.0,3279.9,6.48398]
[1642095685610,0.00113685,3280.0,3279.9,11.18398]
[1642095686810,7.59895281,3280.1,3280.0,8.35]
[1642095687458,6.0978,3280.1,3280.0,8.35]
[1642095690262,6.0978,3280.1,3280.0,8.38155952]
[1642095690463,6.0978,3280.1,3280.0,8.35]
[1642095691102,6.0978,3280.1,3280.0,8.4718]
[1642095691302,6.0978,3280.1,3280.0,8.38850286]
[1642095691903,8.71808081,3280.1,3280.0,8.38850286]
[1642095692302,8.71808081,3280.1,3280.0,8.35]
[1642095693503,8.71808081,3280.1,3279.9,1.52413]
[1642095693905,0.1218,3280.0,3279.9,1.52413]
[1642095694103,0.1218,3280.0,3279.9,0.76208]
[1642095694561,0.1218,3280.0,3279.8,0.1218]
[1642095694562,2.74208081,3280.0,3279.8,0.1218]
[1642095695357,2.62028081,3280.0,3279.8,0.1218]
[1642095695556,2.74218081,3280.0,3279.8,0.1218]
[1642095696356,0.76242,3279.9,3279.8,0.1218]
[1642095696556,3.50450081,3279.9,3279.8,0.1218]
[1642095696758,4.24090081,3279.9,3279.8,0.00113684]
[1642095697157,4.60490081,3279.9,3279.2,0.00454739]
[1642095697456,4.60490081,3279.9,3278.8,7.8747]
[1642095697457,0.7627,3279.5,3278.9,0.00625266]
[1642095697657,1.60345312,3279.3,3278.9,0.00625266]
[1642095697864,0.1218,3279.2,3278.9,0.00625266]
[1642095698157,0.1218,3279.2,3278.2,0.1218]
[1642095698158,0.05958408,3279.1,3278.3,0.0096632]
[1642095698424,0.7628149,3278.8,3278.3,0.0096632]
[1642095698627,0.09795791,3278.6,3278.3,0.0096632]
[1642095698824,0.122,3278.5,3278.3,0.0096632]
[1642095699023,1.23104564,3278.5,3278.3,0.0096632]
[1642095699525,0.122,3278.5,3278.3,0.0096632]
[1642095699925,2.28849,3279.0,3278.4,4.35]
[1642095700128,5.59997818,3279.1,3278.7,0.45471223]
[1642095700326,5.59997818,3279.1,3278.8,0.7625]
[1642095700524,5.59997818,3279.1,3278.8,0.76932108]
[1642095700725,5.59997818,3279.1,3278.9,0.00625266]
[1642095701129,2.97969737,3279.0,3278.9,0.00625266]
[1642095701429,2.97969737,3279.0,3278.9,3.00625266]
[1642095701627,2.97969737,3279.0,3278.9,0.00625266]
[1642095701828,2.97969737,3279.0,3278.9,0.76883266]
[1642095702460,0.76261,3279.3,3278.9,0.76883266]
[1642095702660,0.1219,3279.5,3279.1,0.76254]
[1642095702860,0.1219,3279.5,3279.1,1.47509]
[1642095703061,0.76257,3279.4,3279.2,0.00454739]
[1642095703261,4.3718,3279.3,3279.2,0.00454739]
[1642095703470,4.3718,3279.3,3278.8,0.00682108]
[1642095703471,1.64719,3279.3,3278.8,0.00682108]
[1642095703662,1.64719,3279.3,3278.7,0.00738951]
[1642095703860,1.64719,3279.3,3278.5,0.00852635]
[1642095704060,0.7627115,3279.1,3278.5,0.77121635]
[1642095704260,0.1218,3279.0,3278.5,0.77121635]
[1642095704460,0.1218,3279.0,3278.6,0.00795793]
[1642095704861,0.1218,3279.2,3278.6,0.00795793]
[1642095705061,0.1218,3279.2,3278.5,0.00852635]
[1642095705263,0.1218,3279.2,3278.6,0.76267]
[1642095705662,0.06000135,3278.9,3278.7,0.00738951]
[1642095705913,0.1218,3278.9,3278.7,0.00738951]
[1642095706214,0.1218,3278.9,3278.5,0.00852635]
[1642095706411,0.76266,3279.0,3278.5,0.00852635]
[1642095707213,0.88446,3279.0,3278.5,0.00852635]
[1642095707411,0.07273962,3278.9,3278.3,0.0096632]
[1642095707712,0.88446,3279.0,3278.2,0.13223163]
[1642095707713,0.76279,3278.6,3278.2,0.13223163]
[1642095708114,0.76279,3278.6,3278.3,0.0096632]
[1642095708513,0.61319,3278.6,3278.3,0.0096632]
[1642095709317,0.76267,3278.8,3278.3,0.7723432]
[1642095709567,3.10043887,3279.0,3278.5,0.76267]
[1642095709761,2.97863887,3278.9,3278.5,0.76267]
[1642095709960,2.97863887,3278.9,3278.6,0.00795793]
[1642095710562,0.1218,3279.0,3278.6,0.00795793]
[1642095711062,0.07470613,3278.9,3278.6,0.00795793]
[1642095711468,2.97863887,3279.1,3278.7,0.558037]
[1642095711862,2.97863887,3279.1,3278.8,0.00682108]
[1642095712061,2.97863887,3279.1,3278.8,0.12862108]
[1642095712263,2.97863887,3279.6,3278.9,0.76247]
[1642095712463,0.1218,3279.5,3278.9,4.86872266]
[1642095712662,0.1218,3279.5,3279.0,0.00568424]
[1642095712862,2.97863887,3279.6,3279.0,0.00568424]
[1642095713319,0.76252,3279.4,3279.0,1.30646317]
[1642095713518,2.97863887,3279.6,3279.0,1.30646317]
[1642095713519,2.97863887,3279.6,3279.5,4.85]
[1642095713720,7.62914105,3280.0,3279.5,4.85]
[1642095713923,7.75094105,3280.0,3279.5,4.85284212]
[1642095714120,7.75094105,3280.0,3279.7,1.36525016]
[1642095714121,7.62914105,3280.0,3279.7,1.36525016]
[1642095714420,0.09229308,3279.9,3279.8,0.00113685]
[1642095714628,0.1218,3280.0,3279.8,0.00113685]
[1642095714820,6.0978,3280.1,3279.8,0.00113685]
[1642095715924,6.0978,3280.1,3279.8,0.76232]
[1642095716527,0.04951904,3280.0,3279.8,0.76232]
[1642095716726,4.86436025,3280.0,3279.8,0.76232]
[1642095716926,4.86436025,3280.0,3279.9,1.52448]
[1642095718071,2.62060235,3280.0,3279.9,1.52448]
[1642095719771,2.60060235,3280.0,3279.9,1.52448]
[1642095720814,2.60060235,3280.0,3279.7,2.88980016]
[1642095720815,4.84436025,3280.0,3279.7,2.88980016]
[1642095721414,2.60060235,3280.0,3279.7,2.88980016]
[1642095721614,2.60060235,3280.0,3279.8,0.1218]
[1642095721818,0.05591084,3279.9,3279.7,2.88980016]
[1642095722015,2.60060235,3280.0,3279.7,2.88980016]
[1642095722216,1.49574232,3279.9,3279.7,3.65213016]
[1642095724016,1.49574232,3279.9,3279.7,2.28688]
[1642095724216,1.49574232,3279.9,3279.7,0.76233]
[1642095724692,2.24361348,3279.9,3279.7,1.5246]
[1642095725089,2.24361348,3279.9,3279.8,1.2120466]
[1642095725691,2.24361348,3279.9,3279.8,1.3338466]
[1642095726092,2.24361348,3279.9,3279.8,6.0338466]
[1642095726693,1.49816215,3279.9,3279.8,1.3338466]
[1642095727694,1.49816215,3279.9,3279.8,0.1218]
[1642095727896,4.84421583,3280.0,3279.6,0.1218]
[1642095728194,4.84421583,3280.0,3279.2,3.04954]
[1642095728195,0.06278031,3279.9,3279.2,3.04954]
[1642095728408,4.91601583,3280.0,3279.3,0.1218]
[1642095728609,4.91601583,3280.0,3279.3,0.12464212]
[1642095728807,2.36541348,3280.0,3279.3,0.12464212]
[1642095729008,0.76247,3279.6,3279.3,0.12464212]
[1642095729209,0.05105843,3279.5,3279.3,0.12464212]
[1642095729408,0.05105843,3279.5,3279.3,0.00284212]
[1642095729613,2.24361348,3279.7,3279.3,0.43872561]
[1642095729809,2.24361348,3279.7,3279.4,0.1218]
[1642095730010,1.49768985,3279.6,3279.4,0.12407369]
[1642095730212,1.49768985,3279.6,3279.5,9.74369083]
[1642095730810,3.74130333,3279.9,3279.5,9.74369083]
[1642095731010,1.49768985,3279.9,3279.8,5.1284366]
[1642095732059,1.49768985,3280.0,3279.8,4.6]
[1642095732759,1.49768985,3280.0,3279.7,0.76224]
[1642095732961,0.09795791,3279.9,3279.7,2.28672]
[1642095733160,7.59548985,3280.1,3279.7,2.76820737]
[1642095734061,7.59548985,3280.1,3279.8,0.76223]
[1642095734262,1.59564776,3280.0,3279.8,0.76223]
[1642095734465,1.49768985,3280.0,3279.8,0.76223]
[1642095735666,1.49768985,3279.9,3279.8,0.76223]
[1642095736309,1.49768985,3279.9,3279.6,2.28813685]
[1642095737112,2.26006985,3279.9,3279.6,2.28813685]
[1642095737309,1.49768985,3279.8,3279.6,2.28813685]
[1642095737910,1.49768985,3279.8,3279.6,3.78813685]
[1642095738711,1.49768985,3279.8,3279.6,3.73813685]
[1642095739411,1.49768985,3279.9,3279.6,3.73813685]
[1642095740667,0.09517207,3279.8,3279.6,3.73813685]
[1642095740866,1.49768985,3279.9,3279.6,3.73813685]
[1642095741166,1.49768985,3279.8,3279.6,3.73813685]
[1642095741568,1.49768985,3279.8,3279.6,3.68813685]
[1642095743169,1.49768985,3279.7,3279.6,3.68813685]
[1642095743427,1.49768985,3279.7,3279.6,2.26351685]
[1642095743628,1.49768985,3279.7,3279.6,1.50113685]
[1642095743931,5.26948985,3279.7,3279.6,1.50113685]
[1642095744127,5.70804605,3279.7,3279.6,1.50113685]
[1642095744730,5.55,3279.6,3278.4,0.76265]
[1642095745028,5.55,3279.6,3278.5,0.00625265]
[1642095745029,0.76267,3279.1,3278.5,0.00625265]
[1642095745231,0.05611493,3278.9,3278.5,0.00625265]
[1642095745429,0.1218,3278.8,3278.3,3.85992108]
[1642095745628,0.1218,3278.8,3277.9,0.76279]
[1642095745629,0.05446189,3278.7,3277.9,0.76279]
[1642095745828,0.122,3278.6,3277.7,9.0469]
[1642095746028,0.76283,3278.2,3278.0,0.00227369]
[1642095746230,0.82526303,3278.2,3278.0,0.00227369]
[1642095746428,0.76283,3278.2,3278.0,0.00227369]
[1642095746629,0.76283,3278.2,3277.7,0.00397896]
[1642095746928,1.5256904,3278.2,3277.6,0.00454739]
[1642095747160,0.76286,3277.9,3277.5,0.83941739]
[1642095747561,0.00113685,3277.8,3277.6,0.05]
[1642095747765,0.122,3278.2,3277.7,6.5]
[1642095747962,0.122,3278.5,3278.0,0.01233408]
[1642095748164,0.00170527,3278.1,3277.7,6.5]
[1642095748461,0.122,3278.8,3277.7,6.45]
[1642095748462,0.00113685,3278.0,3277.7,6.45]
[1642095748661,0.00113685,3278.0,3277.8,0.76267]
[1642095748662,0.02254173,3277.9,3277.8,0.76267]
[1642095748862,0.122,3278.8,3277.9,0.76278]
[1642095748863,0.00511581,3278.7,3277.9,0.76278]
[1642095749063,0.7627716,3278.5,3277.9,0.76278]
[1642095749263,0.12654739,3278.6,3277.9,0.76278]
[1642095749465,0.00341054,3278.4,3278.0,0.02697323]
[1642095749662,0.00341054,3278.4,3277.9,0.76278]
[1642095749663,0.00397897,3278.5,3277.9,0.76278]
[1642095749862,0.00284212,3278.3,3278.0,0.76277]
[1642095750063,0.76621074,3278.4,3278.1,0.02694061]
[1642095750267,0.00227369,3278.2,3278.0,0.76276]
[1642095750465,0.76561212,3278.3,3278.0,0.76276]
[1642095750916,0.00227369,3278.2,3278.0,0.76276]
[1642095751515,2.62367766,3278.2,3278.0,0.76276]
[1642095751917,2.62367766,3278.2,3277.8,0.76279]
[1642095752120,2.62367766,3278.2,3277.7,1.64752]
[1642095752319,0.76283,3278.0,3277.7,1.52552]
[1642095752518,2.62367766,3278.2,3277.7,1.52552]
[1642095753018,0.00227369,3278.2,3278.1,3.86823232]
[1642095753318,0.00227369,3278.2,3278.1,3.81823232]
[1642095753917,2.62379604,3278.2,3278.1,3.81823232]
[1642095754317,2.62379604,3278.2,3278.1,1.11823232]
[1642095754564,0.00227369,3278.2,3278.1,1.11823232]
[1642095754763,0.00227369,3278.2,3277.8,0.76281]
[1642095755066,0.00227369,3278.2,3277.9,0.02287104]
[1642095755466,0.0463162,3278.1,3277.8,0.76281]
[1642095755663,0.76281,3278.1,3277.9,0.76279]
[1642095755868,0.76281,3278.1,3277.6,0.122]
[1642095755869,0.00113685,3278.0,3277.6,0.122]
[1642095756563,0.00113685,3278.0,3277.7,0.76283]
[1642095756564,2.6226592,3278.0,3277.7,0.76283]
[1642095756763,2.6226592,3278.0,3277.7,1.52562]
[1642095757163,0.00113685,3278.0,3277.9,4.82781792]
[1642095757863,0.00113685,3278.0,3277.9,10.77781792]
[1642095758308,0.00113685,3278.0,3277.9,10.89981792]
[1642095758509,2.62152235,3278.3,3278.0,11.25134256]
[1642095758711,2.62152235,3278.3,3278.0,11.37334256]
[1642095758906,0.00113684,3278.2,3278.1,0.76253]
[1642095759307,2.62152235,3278.6,3278.2,0.02814339]
[1642095759509,0.03076481,3278.5,3278.2,0.122]
[1642095759706,0.00284212,3278.5,3278.0,16.53280256]
[1642095759907,0.00227369,3278.4,3278.3,0.76269]
[1642095760106,0.02111404,3278.3,3278.1,0.76272]
[1642095760305,0.00227369,3278.4,3278.1,0.76272]
[1642095760506,0.00170527,3278.3,3278.0,3.05045]
[1642095760710,0.122,3278.2,3277.8,3.7748]
[1642095760908,0.122,3278.2,3277.8,0.122]
[1642095761509,0.122,3278.2,3277.9,0.00735775]
[1642095761707,0.122,3278.2,3277.8,0.122]
[1642095761908,0.02543348,3278.1,3277.8,0.122]
[1642095762172,0.122,3278.0,3277.8,0.122]
[1642095762370,0.122,3278.2,3277.8,0.122]
[1642095762578,2.62152235,3278.1,3277.8,0.122]
[1642095762773,0.122,3278.0,3277.8,0.122]
[1642095763073,2.01184,3278.0,3277.8,0.122]
[1642095763275,2.01184,3278.0,3277.8,0.0001]
[1642095763471,3.01184,3278.0,3276.6,5.538]
[1642095763671,3.01184,3278.0,3276.8,1.29647763]
[1642095763872,0.03806657,3277.9,3277.2,0.0011663]
[1642095764074,0.7630642,3277.6,3277.2,0.0011663]
[1642095764274,1.64814,3277.5,3277.3,0.00397897]
[1642095765073,0.76307,3277.4,3277.3,0.00397897]
[1642095765674,0.76307,3277.4,3276.8,0.00682108]
[1642095765918,1.52641,3277.2,3276.8,0.00682108]
[1642095766114,0.122,3277.1,3276.8,0.00682108]
[1642095766515,0.7632221,3277.0,3276.4,0.3378875]
[1642095766718,0.7632,3276.7,3276.2,0.122]
[1642095767018,0.00696837,3276.4,3275.2,3.8239]
[1642095767217,1.0,3276.2,3275.2,3.8239]
[1642095767418,0.4861,3276.1,3275.2,3.8239]
[1642095767615,0.4861,3276.1,3275.8,0.02302857]
[1642095767816,0.4861,3276.1,3276.0,7.75619132]
[1642095768017,0.76345,3276.1,3276.0,7.75619132]
[1642095768218,0.122,3276.7,3276.0,7.75619132]
[1642095768520,0.12427369,3276.9,3276.1,0.0022737]
[1642095768917,1.49801565,3276.3,3276.1,0.0022737]
[1642095769116,1.49801565,3276.3,3276.2,1.79265585]
[1642095769584,1.49801565,3276.3,3276.2,5.29436112]
[1642095770175,1.42105115,3276.3,3276.2,1.79436112]
[1642095770474,1.42105115,3276.3,3276.2,1.27700292]
[1642095770673,3.93118288,3276.5,3276.2,1.27700292]
[1642095770876,0.00170527,3276.8,3276.3,0.01784666]
[1642095771078,0.00170527,3276.8,3276.4,0.76313]
[1642095771275,0.00113684,3276.7,3276.4,0.76313]
[1642095771675,0.122,3277.0,3276.6,0.43540984]
[1642095771875,0.76650054,3277.1,3276.6,0.43540984]
[1642095772079,0.00227369,3276.9,3276.7,1.43802701]
[1642095772276,2.24702348,3277.3,3276.8,10.31272394]
[1642095772474,8.64876098,3277.9,3276.9,10.3]
[1642095772675,0.00170527,3277.2,3276.9,10.3]
[1642095773075,0.00113685,3277.1,3276.9,11.82562]
[1642095773316,3.93118288,3277.7,3277.0,11.06281]
[1642095773517,3.93118288,3277.7,3277.3,0.76274]
[1642095773721,0.00284211,3277.6,3277.4,0.122]
[1642095774119,0.00227369,3277.5,3277.4,0.122]
[1642095774518,0.00227369,3277.5,3277.4,11.71299395]
[1642095774719,0.00227369,3277.5,3277.4,11.85119392]
[1642095774919,0.00227369,3277.5,3277.4,11.89004117]
[1642095775118,2.99537969,3278.5,3277.4,11.89004117]
[1642095775318,6.92656257,3278.8,3278.4,0.49562039]
[1642095775518,6.92656257,3278.8,3278.4,0.7626]
[1642095775720,6.92656257,3278.8,3278.5,0.06576793]
[1642095775916,6.92656257,3278.8,3278.5,1.52378178]
[1642095776118,6.92656257,3278.8,3278.4,0.7626]
[1642095776321,0.122,3278.7,3277.8,1.52529]
[1642095776520,0.122,3278.7,3277.8,2.11269509]
[1642095776718,0.00625266,3278.6,3277.9,1.52534]
[1642095776917,0.00625266,3278.6,3277.5,3.9885]
[1642095776918,0.122,3278.5,3277.5,3.9885]
[1642095777163,0.12768424,3278.5,3277.5,3.8665]
[1642095777363,0.12768424,3278.5,3277.8,1.26578045]
[1642095777364,0.00511581,3278.4,3277.8,1.26578045]
[1642095777563,0.00511581,3278.4,3278.0,0.07689964]
[1642095777762,0.00454739,3278.3,3277.9,0.76274]
[1642095777964,0.00454739,3278.3,3278.1,0.4967805]
[1642095778164,0.00397896,3278.2,3278.1,0.4967805]
[1642095778364,0.00397896,3278.2,3277.8,1.26578045]
[1642095778565,0.00397896,3278.2,3278.1,0.76271]
[1642095778766,0.122,3278.6,3278.1,0.76271]
[1642095778968,0.122,3278.7,3278.5,0.05556986]
[1642095779166,0.88471,3278.7,3278.5,0.05556986]
[1642095779366,0.122,3278.7,3278.4,1.39053336]
[1642095779567,0.122,3278.7,3278.5,0.45525341]
[1642095779773,0.122,3278.7,3278.3,1.5251]
[1642095780070,0.122,3278.7,3277.7,0.122]
[1642095780268,0.122,3278.7,3277.7,0.76276]
[1642095780269,0.76275,3278.6,3277.7,0.76276]
[1642095780470,0.122,3278.5,3277.7,0.76276]
[1642095780666,0.00568424,3278.5,3277.7,0.76276]
[1642095780923,0.122,3278.4,3278.0,0.49189676]
[1642095781123,0.122,3278.4,3278.1,0.05565054]
[1642095781322,2.29263474,3278.3,3278.0,0.49189676]
[1642095781528,0.122,3278.2,3278.0,0.49189676]
[1642095781820,0.00341054,3278.1,3278.0,0.49189676]
[1642095782519,0.07541054,3278.2,3278.0,0.49189676]
[1642095782720,0.122,3278.3,3277.8,1.40829526]
[1642095783219,0.12313685,3278.3,3277.9,0.00113685]
[1642095783820,0.12313685,3278.3,3278.0,0.09795791]
[1642095784225,0.00113685,3278.3,3277.9,0.00113685]
[1642095784423,0.76282,3278.2,3277.9,0.00113685]
[1642095785666,0.00113685,3278.3,3277.9,0.00113685]
[1642095785866,2.62200863,3278.1,3277.9,0.00113685]
[1642095786065,2.62200863,3278.1,3278.0,9.9]
[1642095786266,2.62200863,3278.1,3278.0,10.022]
[1642095786864,0.00113685,3278.3,3278.0,10.022]
[1642095787066,0.00113685,3278.3,3278.1,0.76262]
[1642095788068,0.00113685,3278.3,3278.1,1.52524]
[1642095788613,0.00113685,3278.3,3278.2,0.0312005]
[1642095788813,4.91009598,3278.9,3278.3,10.3]
[1642095789013,2.28808735,3278.8,3278.5,0.80034369]
[1642095789218,2.29092947,3278.8,3278.7,10.85697455]
[1642095789413,3.03359835,3279.0,3278.8,10.15]
[1642095789612,3.03359835,3279.0,3278.9,11.14916699]
[1642095789813,3.69795817,3279.5,3279.0,6.85]
[1642095790013,3.69795817,3279.5,3279.2,0.76231]
[1642095790213,3.69795817,3279.5,3279.2,1.52463]
[1642095790413,3.69795817,3279.5,3279.4,1.3016649]
[1642095790615,3.69795817,3279.5,3279.1,3.17116]
[1642095790815,0.00397896,3279.5,3279.1,3.04926]
[1642095791014,0.00397896,3279.5,3278.8,0.88427]
[1642095791614,0.00397896,3279.5,3278.9,0.09181478]
[1642095791919,0.00397896,3279.5,3279.1,1.14873978]
[1642095792167,0.00397896,3279.5,3278.7,0.67877455]
[1642095792368,0.00397896,3279.5,3278.7,0.1218]
[1642095792568,0.00397896,3279.5,3279.1,0.44]
[1642095792767,0.1218,3279.4,3279.1,0.44]
[1642095792968,0.00397896,3279.5,3279.1,0.44]
[1642095793167,0.00284211,3279.3,3279.1,0.44]
[1642095793369,0.00341054,3279.4,3279.0,0.41920618]
[1642095793568,3.81975817,3279.6,3279.3,0.51835679]
[1642095793569,3.69795817,3279.6,3279.3,0.51835679]
[1642095793970,0.00397896,3279.5,3279.4,1.2493978]
[1642095795371,0.00397896,3279.5,3279.4,5.2493978]
[1642095796419,0.00397896,3279.5,3279.4,8.5493978]
[1642095798321,0.00397896,3279.5,3279.4,5.2493978]
[1642095799422,3.08104222,3279.5,3279.4,5.2493978]
[1642095800261,0.00397896,3279.5,3279.4,5.2493978]
[1642095800463,0.00397896,3279.5,3279.4,3.25564779]
[1642095800663,0.00397896,3279.5,3279.4,4.43285859]
[1642095802166,3.08104222,3279.5,3279.4,4.43285859]
[1642095802363,3.08104222,3279.5,3279.2,0.88415]
[1642095802563,3.08104222,3279.5,3279.2,0.1218]
[1642095802763,0.12521054,3279.4,3279.2,0.1218]
[1642095802966,0.12521054,3279.4,3278.4,3.7903]
[1642095802967,1.65040054,3279.4,3278.4,3.7903]
[1642095803163,0.00284211,3279.3,3278.4,3.7903]
[1642095803414,0.1218,3279.2,3278.6,0.04939011]
[1642095803614,1.12407369,3279.2,3278.5,0.00170527]
[1642095803816,0.00170527,3279.1,3278.5,0.00170527]
[1642095804013,0.88442,3279.0,3278.5,0.00170527]
[1642095804214,0.88442,3279.0,3278.4,0.76258]
[1642095804215,2.30077001,3278.8,3278.4,0.76258]
[1642095804414,0.122,3278.7,3278.5,0.00170527]
[1642095805015,0.122,3278.7,3278.5,1.39663398]
[1642095805216,0.122,3278.7,3278.5,1.32469556]
[1642095805418,2.42277001,3278.7,3278.6,0.00113685]
[1642095805616,2.30077001,3278.7,3278.6,0.00113685]
[1642095805818,2.30077001,3278.7,3278.5,0.00170527]
[1642095806619,8.64765,3278.6,3278.5,0.00170527]
[1642095806918,10.01165,3278.6,3277.9,0.00511582]
[1642095807367,0.76304,3278.0,3277.5,0.00738951]
[1642095807666,0.76304,3278.0,3276.9,0.01080005]
[1642095807667,1.52618,3277.5,3276.9,0.01080005]
[1642095807870,0.122,3277.4,3276.9,0.01080005]
[1642095808065,10.5,3277.3,3276.9,0.01080005]
[1642095808263,0.486,3277.2,3276.7,0.0119369]
[1642095808465,0.76324,3277.1,3276.7,0.0119369]
[1642095808663,0.122,3277.0,3276.7,0.0119369]
[1642095808964,3.0882106,3277.0,3276.7,0.0119369]
[1642095809164,1.64857,3277.0,3276.8,0.09779323]
[1642095809367,3.94087957,3277.0,3276.7,0.0119369]
[1642095809566,3.94087957,3277.0,3276.9,0.01080005]
[1642095809567,5.46747277,3277.0,3276.9,0.01080005]
[1642095809767,5.46747277,3277.0,3276.7,0.0119369]
[1642095809768,2.41430957,3277.0,3276.7,0.0119369]
[1642095809971,2.41430957,3277.0,3276.8,0.08179752]
[1642095809972,2.29230957,3277.0,3276.8,0.08179752]
[1642095810168,2.29230957,3277.0,3276.7,0.0119369]
[1642095810366,2.29230957,3277.0,3276.9,0.01080005]
[1642095810569,2.29230957,3277.0,3276.7,0.0119369]
[1642095811018,2.62258896,3277.0,3276.7,0.7749069]
[1642095811418,2.62258896,3277.0,3276.8,0.01136847]
[1642095811818,8.84608141,3277.2,3276.8,0.01136847]
[1642095812019,2.62258896,3277.2,3276.9,0.07365669]
[1642095812221,2.62258896,3277.2,3276.8,0.01136847]
[1642095812222,2.62258896,3277.2,3277.0,0.76287]
[1642095812420,2.62258896,3277.2,3277.0,0.77310163]
[1642095812624,2.62258896,3277.2,3277.1,0.0096632]
[1642095813020,2.62258896,3277.2,3276.7,0.0119369]
[1642095813625,2.62258896,3277.2,3276.8,0.09573004]
[1642095813626,0.76307,3277.0,3276.8,0.09573004]
[1642095813821,0.76307,3277.0,3276.7,0.0119369]
[1642095814022,0.76307,3277.0,3276.9,0.01080005]
[1642095814222,0.76307,3277.0,3276.7,0.0119369]
[1642095814223,4.11307,3277.0,3276.7,0.0119369]
[1642095814423,4.11307,3277.0,3276.4,0.01364217]
[1642095814670,0.76331,3276.7,3276.4,0.01364217]
[1642095814865,0.76331,3276.7,3276.1,0.01534744]
[1642095815065,1.44474638,3276.3,3275.9,0.01648428]
[1642095815270,0.364,3276.2,3275.9,0.01648428]
[1642095815465,0.364,3276.2,3275.8,0.01705271]
[1642095816065,0.76338,3276.1,3275.8,0.01705271]
[1642095816467,0.1221,3276.5,3275.9,0.08289483]
[1642095816867,0.1221,3276.5,3276.0,0.01591586]
[1642095817067,2.62258896,3276.1,3276.0,0.01591586]
[1642095817267,2.62258896,3276.1,3275.9,0.01648428]
[1642095817967,1.0,3276.1,3275.9,0.01648428]
[1642095818616,2.29230957,3276.2,3275.9,0.77964428]
[1642095818815,2.29230957,3276.3,3276.0,0.08479929]
[1642095819015,2.29230957,3276.3,3276.0,0.01591586]
[1642095819217,2.29230957,3276.3,3276.1,0.01534744]
[1642095819415,2.29230957,3276.3,3276.0,0.77900586]
[1642095819616,2.29230957,3276.3,3276.1,0.01534744]
[1642095819815,1.53604616,3276.4,3276.1,0.07972324]